bitfinex/quotes_BTCUSD_20240818
["timestamp","ask_amount","ask_price","bid_price","bid_amount"]
[1723985136518,0.1578,60281.0,60280.0,0.00724773]
[1723985136898,0.273922,60281.0,60280.0,0.00724773]
[1723985137099,0.276922,60281.0,60280.0,0.0009075]
[1723985138339,0.276922,60281.0,60280.0,0.00724773]
[1723985138615,0.276922,60281.0,60280.0,0.0009075]
[1723985139642,0.509167,60281.0,60280.0,0.0009075]
[1723985143066,0.006,60281.0,60280.0,0.0009075]
[1723985143268,0.006,60281.0,60280.0,0.35992266]
[1723985143426,0.006,60281.0,60280.0,1.10523714]
[1723985143641,0.006,60281.0,60280.0,2.6019198]
[1723985143840,0.006,60281.0,60280.0,2.62239265]
[1723985144044,0.003,60281.0,60280.0,2.72239265]
[1723985144383,0.0872,60299.0,60298.0,0.11609]
[1723985144799,0.0872,60299.0,60298.0,0.34827]
[1723985145002,0.0872,60299.0,60296.0,0.116093]
[1723985145405,0.0872,60299.0,60297.0,0.116091]
[1723985146064,0.0872,60299.0,60294.0,0.116096]
[1723985146266,0.0872,60299.0,60292.0,0.2322]
[1723985146267,0.0872,60299.0,60295.0,0.116095]
[1723985146832,0.0882,60299.0,60298.0,0.006]
[1723985147038,0.204288,60299.0,60298.0,0.006]
[1723985147238,0.505064,60299.0,60298.0,0.013]
[1723985147438,0.605064,60299.0,60298.0,0.013]
[1723985147688,0.0872,60294.0,60287.0,0.02040457]
[1723985147862,0.1161,60293.0,60285.0,0.116114]
[1723985148071,0.0872,60294.0,60288.0,0.00721422]
[1723985148278,0.0872,60294.0,60285.0,0.232229]
[1723985148472,0.0872,60294.0,60289.0,0.12331852]
[1723985148672,0.0872,60294.0,60289.0,0.116106]
[1723985148874,0.0872,60294.0,60290.0,0.00721082]
[1723985150278,0.0872,60294.0,60288.0,0.116108]
[1723985150589,0.0872,60294.0,60290.0,0.004]
[1723985150848,0.003,60293.0,60290.0,0.004]
[1723985151066,0.003,60293.0,60291.0,0.00720912]
[1723985151665,0.003,60293.0,60292.0,0.410904]
[1723985151776,2.1935,60304.0,60302.0,0.348246]
[1723985151777,2.1063,60304.0,60302.0,0.348246]
[1723985151977,2.1063,60304.0,60302.0,0.61580491]
[1723985152217,2.1063,60304.0,60302.0,2.327574]
[1723985152439,2.1063,60304.0,60302.0,2.40659805]
[1723985152863,2.1063,60304.0,60302.0,2.40859805]
[1723985153066,2.1063,60304.0,60302.0,2.40659805]
[1723985154284,0.00852468,60303.0,60302.0,2.84183507]
[1723985154551,0.00952468,60303.0,60302.0,2.90001065]
[1723985154755,0.00552468,60303.0,60302.0,2.90908164]
[1723985154958,0.00652468,60303.0,60302.0,2.45984426]
[1723985155171,0.00652468,60303.0,60302.0,2.42559805]
[1723985155375,0.00552468,60303.0,60302.0,2.12083405]
[1723985155578,0.00552468,60303.0,60302.0,2.13483405]
[1723985155778,0.00652468,60303.0,60302.0,2.13483405]
[1723985155987,0.00452468,60303.0,60302.0,2.11083405]
[1723985156389,0.00552468,60303.0,60302.0,0.61983405]
[1723985156610,0.00552468,60303.0,60302.0,0.38767005]
[1723985156809,0.00452468,60303.0,60302.0,0.12612081]
[1723985157009,0.00452468,60303.0,60300.0,0.116085]
[1723985157190,0.00452468,60303.0,60302.0,0.02113579]
[1723985157191,0.00552468,60303.0,60302.0,0.02113579]
[1723985157434,0.00652468,60303.0,60302.0,0.028]
[1723985157626,0.00452468,60303.0,60301.0,0.116083]
[1723985157834,0.00452468,60303.0,60299.0,0.116087]
[1723985158125,0.00452468,60303.0,60291.0,0.704005]
[1723985158126,0.00652468,60303.0,60302.0,0.438146]
[1723985158332,2.06392468,60304.0,60303.0,0.81556]
[1723985158539,2.06392468,60304.0,60303.0,1.58681542]
[1723985158727,2.06392468,60304.0,60303.0,2.0204075]
[1723985158928,0.84392468,60304.0,60303.0,1.65385687]
[1723985159234,0.84392468,60304.0,60303.0,3.15385687]
[1723985159460,0.84392468,60304.0,60303.0,3.29860362]
[1723985160304,0.84392468,60304.0,60303.0,3.06644362]
[1723985160509,0.84392468,60304.0,60303.0,2.95393571]
[1723985160646,0.84392468,60304.0,60303.0,3.02100232]
[1723985160838,0.84392468,60304.0,60303.0,3.03500232]
[1723985161044,0.84392468,60304.0,60303.0,2.9984927]
[1723985161271,0.84392468,60304.0,60303.0,3.00692903]
[1723985161481,0.84392468,60304.0,60303.0,2.98586242]
[1723985161645,0.84392468,60304.0,60303.0,2.98585787]
[1723985161852,0.84392468,60304.0,60303.0,2.97185787]
[1723985162236,0.84392468,60304.0,60303.0,2.98585787]
[1723985162434,0.84392468,60304.0,60303.0,2.97185787]
[1723985162846,0.84392468,60304.0,60303.0,2.95785787]
[1723985163048,0.84392468,60304.0,60303.0,2.97185787]
[1723985164468,0.84392468,60304.0,60303.0,2.98585787]
[1723985164629,0.84392468,60304.0,60303.0,2.97187065]
[1723985164824,0.84392468,60304.0,60303.0,2.92858917]
[1723985165003,0.84392468,60304.0,60303.0,2.94258917]
[1723985165203,0.84392468,60304.0,60303.0,2.81815402]
[1723985165843,0.84392468,60304.0,60303.0,2.79215402]
[1723985166040,0.84392468,60304.0,60303.0,2.79015402]
[1723985166206,0.84392468,60304.0,60303.0,2.80615402]
[1723985166401,0.84392468,60304.0,60303.0,2.80415402]
[1723985166603,0.84392468,60304.0,60303.0,2.90615402]
[1723985166818,2.9047,60305.0,60304.0,0.817549]
[1723985167017,2.9047,60305.0,60304.0,1.21318781]
[1723985167018,1.6847,60305.0,60304.0,1.21318781]
[1723985167264,1.6847,60305.0,60304.0,1.63317263]
[1723985167416,1.6847,60305.0,60304.0,3.13317263]
[1723985167666,1.6847,60305.0,60304.0,3.18982403]
[1723985167908,1.61837,60305.0,60304.0,3.18982403]
[1723985168093,1.585205,60305.0,60304.0,3.20382403]
[1723985168380,1.40127097,60305.0,60304.0,3.18982403]
[1723985168570,1.40127097,60305.0,60304.0,3.28502054]
[1723985168571,1.32309119,60305.0,60304.0,3.28502054]
[1723985168767,1.32309119,60305.0,60304.0,3.89890055]
[1723985169124,1.15726619,60305.0,60304.0,3.96933482]
[1723985169393,1.98440163,60306.0,60305.0,1.49678878]
[1723985169575,1.55736212,60306.0,60305.0,4.56640689]
[1723985169803,1.4869809,60306.0,60305.0,6.10761834]
[1723985169993,1.4869809,60306.0,60305.0,8.32395831]
[1723985169994,1.3340829,60306.0,60305.0,8.32395831]
[1723985170221,0.96009725,60306.0,60305.0,8.88771131]
[1723985170349,1.57309649,60307.0,60306.0,1.67779814]
[1723985170552,1.335,60308.0,60307.0,0.121072]
[1723985170553,2.51332212,60308.0,60307.0,0.121072]
[1723985170757,1.05016622,60308.0,60307.0,4.20007774]
[1723985170955,1.18985488,60309.0,60308.0,0.20369666]
[1723985171168,0.03163211,60309.0,60308.0,6.97604143]
[1723985171364,2.18315006,60310.0,60309.0,0.20384082]
[1723985171591,2.18315006,60310.0,60309.0,4.44022428]
[1723985171592,0.81011795,60310.0,60309.0,4.44022428]
[1723985171793,1.19392407,60311.0,60310.0,0.66832266]
[1723985171994,1.6829,60312.0,60311.0,0.121065]
[1723985171995,3.56471916,60312.0,60311.0,0.121065]
[1723985172198,2.01691416,60312.0,60311.0,2.91566908]
[1723985172525,4.1015,60313.0,60312.0,0.953189]
[1723985172647,4.0775,60313.0,60312.0,3.3115284]
[1723985172850,4.0775,60313.0,60312.0,2.85190732]
[1723985173054,4.04434,60313.0,60312.0,5.28403332]
[1723985173254,3.9117,60313.0,60312.0,5.11863311]
[1723985173458,3.86600203,60313.0,60312.0,4.64163878]
[1723985173711,3.82724728,60313.0,60312.0,4.62273375]
[1723985173861,3.82724728,60313.0,60312.0,4.69119235]
[1723985174072,3.66144728,60313.0,60312.0,4.86274689]
[1723985174274,3.66144728,60313.0,60312.0,4.16274689]
[1723985174595,3.66144728,60313.0,60312.0,4.17674689]
[1723985174757,3.66144728,60313.0,60312.0,3.40909571]
[1723985174959,3.63744728,60313.0,60312.0,4.04684635]
[1723985175297,3.47164728,60313.0,60312.0,4.37126564]
[1723985175548,3.47164728,60313.0,60312.0,4.47852196]
[1723985175857,3.47164728,60313.0,60312.0,4.29984377]
[1723985176089,3.47164728,60313.0,60312.0,4.11765962]
[1723985176090,3.47160583,60313.0,60312.0,4.11765962]
[1723985176285,3.47160583,60313.0,60312.0,4.01135608]
[1723985176490,3.47160583,60313.0,60312.0,3.42236304]
[1723985176726,3.47160583,60313.0,60312.0,3.39812213]
[1723985176937,2.25160583,60313.0,60312.0,4.2272397]
[1723985177149,2.25160583,60313.0,60312.0,4.14304613]
[1723985177380,2.25160583,60313.0,60312.0,4.10624624]
[1723985177575,2.25160583,60313.0,60312.0,2.36859424]
[1723985177797,2.25160583,60313.0,60312.0,2.3344252]
[1723985177999,2.25160583,60313.0,60312.0,2.13981618]
[1723985178203,2.25160583,60313.0,60312.0,2.13144558]
[1723985178413,2.25160583,60313.0,60312.0,1.93871692]
[1723985178590,2.22660583,60313.0,60312.0,1.88931958]
[1723985178822,2.22660583,60313.0,60312.0,1.65719358]
[1723985179030,2.22660583,60313.0,60312.0,1.56413058]
[1723985179231,2.30870583,60313.0,60312.0,1.5437908]
[1723985179441,2.48026037,60313.0,60312.0,0.0258431]
[1723985179664,2.48026037,60313.0,60312.0,0.0118431]
[1723985179860,2.48026037,60313.0,60307.0,0.116071]
[1723985180076,2.48026037,60313.0,60304.0,0.001]
[1723985180077,2.48026037,60313.0,60312.0,0.028]
[1723985180428,2.48108637,60313.0,60312.0,1.514]
[1723985180631,2.48108637,60313.0,60312.0,1.52382546]
[1723985181010,2.59714737,60313.0,60312.0,1.52628247]
[1723985181441,2.59714737,60313.0,60312.0,0.02628247]
[1723985181638,0.0821,60312.0,60303.0,0.0009086]
[1723985181984,2.46958637,60313.0,60303.0,0.0009086]
[1723985181985,0.0706,60309.0,60303.0,0.0009086]
[1723985182189,0.0821,60307.0,60303.0,0.0009086]
[1723985182392,0.17155454,60306.0,60304.0,0.01249829]
[1723985182656,0.17155454,60306.0,60303.0,0.0009086]
[1723985182657,0.0821,60305.0,60303.0,0.0009086]
[1723985182867,0.17155454,60304.0,60303.0,0.0009086]
[1723985183628,0.32425454,60304.0,60303.0,0.0009086]
[1723985184205,0.32425454,60304.0,60303.0,0.1169886]
[1723985184412,0.32425454,60304.0,60303.0,0.0009086]
[1723985184616,0.32425454,60304.0,60303.0,0.1169886]
[1723985185208,0.1527,60304.0,60303.0,0.1239886]
[1723985185408,2.22743183,60313.0,60312.0,0.348189]
[1723985185649,2.22743183,60313.0,60312.0,0.116063]
[1723985185849,2.22743183,60313.0,60306.0,0.001]
[1723985186048,2.22743183,60313.0,60312.0,1.5]
[1723985186656,2.22743183,60313.0,60312.0,1.616063]
[1723985186825,2.22743183,60313.0,60312.0,1.514]
[1723985187137,2.22843183,60313.0,60312.0,1.630063]
[1723985187360,2.22743183,60313.0,60312.0,1.862189]
[1723985187599,2.22743183,60313.0,60312.0,1.88257992]
[1723985187803,2.22743183,60313.0,60312.0,1.65045392]
[1723985188006,2.39898637,60313.0,60312.0,1.514]
[1723985188160,2.39898637,60313.0,60303.0,0.0009086]
[1723985188343,0.0821,60311.0,60303.0,0.0009086]
[1723985188561,0.17155454,60310.0,60303.0,0.0009086]
[1723985188758,0.198172,60308.0,60303.0,0.0009086]
[1723985188984,0.17155454,60307.0,60303.0,0.0009086]
[1723985189142,0.25365454,60306.0,60303.0,0.0009086]
[1723985189344,0.59038954,60304.0,60303.0,0.0009086]
[1723985189557,0.59038954,60304.0,60288.0,0.0009086]
[1723985189558,0.65641154,60304.0,60288.0,0.0009086]
[1723985189760,0.186698,60294.0,60288.0,0.0009086]
[1723985189992,0.25365454,60293.0,60288.0,0.0009086]
[1723985190840,0.25365454,60293.0,60281.0,0.23556111]
[1723985191206,0.25365454,60293.0,60289.0,0.01254114]
[1723985191422,0.25365454,60293.0,60285.0,0.116114]
[1723985191630,0.25365454,60293.0,60290.0,0.01253717]
[1723985192112,0.25365454,60293.0,60286.0,0.00331711]
[1723985192113,0.25365454,60293.0,60288.0,0.116108]
[1723985192314,0.25365454,60293.0,60292.0,0.116101]
[1723985192740,0.25465454,60293.0,60292.0,0.12873887]
[1723985192941,0.25465454,60293.0,60292.0,0.36094187]
[1723985193147,0.25465454,60293.0,60292.0,0.12873887]
[1723985193340,0.25565454,60293.0,60292.0,0.36094187]
[1723985193631,0.25365454,60293.0,60292.0,0.12873887]
[1723985193797,0.25365454,60293.0,60292.0,0.36094187]
[1723985193998,0.001,60293.0,60292.0,0.59314487]
[1723985194225,0.001,60293.0,60292.0,0.36094187]
[1723985194725,0.001,60293.0,60292.0,0.14173887]
[1723985194925,0.17255454,60293.0,60292.0,0.02563787]
[1723985195692,0.17255454,60293.0,60292.0,1.5]
[1723985196038,0.56355454,60293.0,60292.0,1.5]
[1723985196175,0.56355454,60293.0,60292.0,1.52563787]
[1723985196387,0.56255454,60293.0,60292.0,1.52563787]
[1723985197075,0.56355454,60293.0,60292.0,0.02663787]
[1723985197480,0.56355454,60293.0,60292.0,0.014]
[1723985197940,0.56355454,60293.0,60292.0,0.001]
[1723985198299,0.76255454,60293.0,60292.0,0.014]
[1723985198493,0.76155454,60293.0,60292.0,0.013]
[1723985198696,0.76155454,60293.0,60292.0,0.001]
[1723985198697,0.99375354,60293.0,60292.0,0.001]
[1723985198916,1.21085254,60293.0,60292.0,0.001]
[1723985199091,1.21085254,60293.0,60285.0,0.0009086]
[1723985199092,0.116108,60289.0,60285.0,0.0009086]
[1723985199310,0.391,60287.0,60285.0,0.0009086]
[1723985199536,0.56255454,60287.0,60285.0,0.0009086]
[1723985199875,0.17155454,60286.0,60285.0,0.0009086]
[1723985200777,0.76155454,60286.0,60285.0,0.0009086]
[1723985200997,0.99378054,60286.0,60285.0,0.0009086]
[1723985201192,1.20989354,60286.0,60285.0,0.0009086]
[1723985201420,1.44211954,60286.0,60285.0,0.0009086]
[1723985202026,1.20989354,60286.0,60285.0,0.0009086]
[1723985202167,1.20989354,60286.0,60285.0,0.0019086]
[1723985202369,0.97766754,60286.0,60285.0,0.0019086]
[1723985202568,0.86155454,60286.0,60285.0,0.0019086]
[1723985202971,0.76155454,60286.0,60285.0,0.0009086]
[1723985203175,0.76155454,60286.0,60285.0,0.0029086]
[1723985204842,0.87766754,60286.0,60285.0,0.0029086]
[1723985205260,1.10989354,60286.0,60285.0,0.0029086]
[1723985205741,1.33661954,60286.0,60285.0,0.0029086]
[1723985205900,1.33661954,60286.0,60285.0,0.0009086]
[1723985205901,1.10439354,60286.0,60285.0,0.0009086]
[1723985206339,1.33661954,60286.0,60285.0,0.0019086]
[1723985206527,1.33761954,60286.0,60285.0,0.0019086]
[1723985206697,1.36061954,60286.0,60285.0,0.0019086]
[1723985207312,1.35961954,60286.0,60285.0,0.0019086]
[1723985207465,1.35961954,60286.0,60285.0,0.0009086]
[1723985207907,1.35961954,60286.0,60285.0,0.0019086]
[1723985208114,0.75605454,60286.0,60285.0,0.0019086]
[1723985208739,0.75705454,60286.0,60285.0,0.0019086]
[1723985210141,0.75605454,60286.0,60285.0,0.02235752]
[1723985210492,0.75705454,60286.0,60285.0,0.02235752]
[1723985210692,0.75605454,60286.0,60285.0,0.02135752]
[1723985211097,0.75605454,60286.0,60285.0,0.03527409]
[1723985211475,0.75605454,60286.0,60285.0,1.53427409]
[1723985211876,0.75605454,60286.0,60285.0,1.54227409]
[1723985212080,0.75605454,60286.0,60285.0,1.54327409]
[1723985212081,0.75705454,60286.0,60285.0,1.54327409]
[1723985212471,0.75605454,60286.0,60285.0,1.54227409]
[1723985212702,0.16605454,60286.0,60285.0,1.54227409]
[1723985212904,0.16605454,60286.0,60285.0,1.65938909]
[1723985212905,0.16705454,60286.0,60285.0,1.65938909]
[1723985213112,0.16605454,60286.0,60285.0,1.92497777]
[1723985213335,0.16605454,60286.0,60285.0,1.89061909]
[1723985213553,0.16705454,60286.0,60285.0,1.65138909]
[1723985214011,0.16705454,60286.0,60285.0,1.66138909]
[1723985214211,0.16705454,60286.0,60285.0,1.54527409]
[1723985214414,0.16705454,60286.0,60285.0,1.66138909]
[1723985215490,0.16705454,60286.0,60285.0,1.66137555]
[1723985215713,0.16705454,60286.0,60285.0,1.92793625]
[1723985216117,0.16705454,60286.0,60285.0,1.69570625]
[1723985216456,0.16705454,60286.0,60285.0,1.57959125]
[1723985216642,0.16705454,60286.0,60285.0,0.04526055]
[1723985217002,0.16705454,60286.0,60285.0,0.03234398]
[1723985217401,0.68186754,60286.0,60285.0,0.03234398]
[1723985217623,0.23223,60285.0,60284.0,0.0009086]
[1723985217784,1.10919954,60285.0,60284.0,0.0009086]
[1723985217986,1.34142954,60285.0,60284.0,0.0009086]
[1723985218206,1.59665954,60285.0,60284.0,0.0009086]
[1723985218408,1.46442954,60285.0,60284.0,0.0009086]
[1723985218686,1.46442954,60285.0,60284.0,0.0119086]
[1723985219088,1.46542954,60285.0,60284.0,0.0129086]
[1723985219515,1.46442954,60285.0,60284.0,0.0119086]
[1723985219956,1.47142954,60285.0,60284.0,0.0119086]
[1723985220160,1.46442954,60285.0,60284.0,0.0119086]
[1723985220333,1.46442954,60285.0,60284.0,0.0009086]
[1723985220536,1.47242954,60285.0,60284.0,0.0019086]
[1723985220895,1.47442954,60285.0,60284.0,0.0019086]
[1723985221069,1.70565954,60285.0,60284.0,0.0009086]
[1723985221276,1.70665954,60285.0,60284.0,0.0009086]
[1723985221431,1.71265954,60285.0,60284.0,0.0019086]
[1723985221635,0.1906,60274.0,60266.0,0.03437226]
[1723985221831,0.17155454,60268.0,60267.0,0.05483114]
[1723985222043,0.17155454,60268.0,60267.0,0.06566582]
[1723985222452,0.17155454,60268.0,60267.0,0.06566722]
[1723985222856,0.17155454,60268.0,60267.0,0.0312942]
[1723985223060,0.17255454,60268.0,60267.0,0.0312942]
[1723985223287,0.17155454,60268.0,60267.0,0.02045952]
[1723985223641,0.17255454,60268.0,60267.0,0.02045952]
[1723985224305,0.68740154,60268.0,60267.0,0.02045952]
[1723985224525,0.57125454,60268.0,60267.0,0.02045952]
[1723985224681,0.68740154,60268.0,60267.0,0.00324968]
[1723985225092,0.68740154,60268.0,60267.0,0.00424968]
[1723985225297,0.91969654,60268.0,60267.0,0.00424968]
[1723985225501,1.15199154,60268.0,60267.0,0.00424968]
[1723985225706,1.46459154,60268.0,60267.0,0.00424968]
[1723985225910,1.23229654,60268.0,60267.0,0.001]
[1723985226101,1.46459154,60268.0,60267.0,0.001]
[1723985226482,0.34846,60265.0,60264.0,0.0009086]
[1723985226665,0.91871454,60265.0,60264.0,0.0009086]
[1723985226876,0.94171454,60265.0,60264.0,0.0009086]
[1723985227135,0.348477,60262.0,60261.0,0.08687354]
[1723985227296,1.69796754,60262.0,60261.0,0.01409986]
[1723985227527,0.3987,60256.0,60251.0,0.009086]
[1723985227701,1.15114654,60252.0,60251.0,0.009086]
[1723985227912,1.17414654,60252.0,60251.0,0.009086]
[1723985228128,1.27414654,60252.0,60251.0,0.009086]
[1723985228321,1.50850354,60252.0,60251.0,0.009086]
[1723985228500,0.58098,60243.0,60242.0,0.009075]
[1723985228706,0.58098,60243.0,60231.0,0.07402]
[1723985228707,0.116227,60227.0,60224.0,0.009086]
[1723985228908,0.36215454,60225.0,60224.0,0.009086]
[1723985229119,0.47838454,60225.0,60224.0,0.009086]
[1723985229324,0.71084554,60225.0,60224.0,0.009086]
[1723985229525,1.46500654,60225.0,60224.0,0.009086]
[1723985229814,0.88385454,60225.0,60224.0,0.009086]
[1723985230040,1.00008454,60225.0,60224.0,0.009086]
[1723985230455,1.46600654,60225.0,60224.0,0.009086]
[1723985230663,1.46500654,60225.0,60224.0,0.009086]
[1723985230879,1.46600654,60225.0,60224.0,0.014086]
[1723985231091,0.88485454,60225.0,60224.0,0.014086]
[1723985231296,1.00108454,60225.0,60224.0,0.014086]
[1723985231507,1.00108454,60225.0,60224.0,0.009086]
[1723985231508,1.00008454,60225.0,60224.0,0.009086]
[1723985231711,1.23354554,60225.0,60224.0,0.009086]
[1723985231910,1.00108454,60225.0,60224.0,0.009086]
[1723985232220,1.23354554,60225.0,60224.0,0.009086]
[1723985232654,1.24154554,60225.0,60224.0,0.009086]
[1723985232957,1.23254554,60225.0,60224.0,0.009086]
[1723985233199,0.88785454,60225.0,60224.0,0.009086]
[1723985233450,0.89085454,60225.0,60224.0,0.009086]
[1723985233944,1.00408454,60225.0,60224.0,0.009086]
[1723985234212,1.00408454,60225.0,60223.0,0.009086]
[1723985234213,0.349697,60224.0,60223.0,0.00128708]
[1723985234463,0.64425154,60224.0,60223.0,0.00128708]
[1723985234980,0.41078654,60224.0,60223.0,0.00128708]
[1723985235317,0.29455454,60224.0,60223.0,0.00128708]
[1723985235787,0.27155454,60224.0,60223.0,0.00128708]
[1723985236054,0.27155454,60224.0,60223.0,0.01297518]
[1723985236055,0.27355454,60224.0,60223.0,0.01297518]
[1723985236328,0.17155454,60224.0,60223.0,0.12920918]
[1723985236610,0.17555454,60224.0,60223.0,0.12920918]
[1723985236868,0.17155454,60224.0,60223.0,0.36167818]
[1723985237114,0.17155454,60224.0,60223.0,0.12920918]
[1723985237359,0.17155454,60224.0,60223.0,0.36167818]
[1723985237600,0.17155454,60224.0,60223.0,0.50880918]
[1723985237828,0.17155454,60224.0,60223.0,0.01297518]
[1723985238304,0.17155454,60224.0,60223.0,0.12920918]
[1723985238532,0.17355454,60224.0,60223.0,0.12920918]
[1723985238765,0.17155454,60224.0,60223.0,0.36167818]
[1723985239048,0.17255454,60224.0,60223.0,0.36167818]
[1723985239279,0.17255454,60224.0,60223.0,0.97474718]
[1723985239765,0.17355454,60224.0,60223.0,0.98274718]
[1723985240016,0.002,60224.0,60223.0,0.97974718]
[1723985240257,0.3834,60241.0,60232.0,0.116216]
[1723985240498,0.3834,60241.0,60234.0,0.116212]
[1723985240499,0.17155454,60238.0,60234.0,0.116212]
[1723985240739,0.1,60237.0,60234.0,0.116212]
[1723985240978,0.17155454,60236.0,60235.0,0.12782035]
[1723985241218,0.17155454,60236.0,60235.0,0.36024335]
[1723985241473,0.17155454,60236.0,60235.0,0.12782035]
[1723985241705,0.17155454,60236.0,60235.0,0.01161035]
[1723985242135,0.17155454,60236.0,60234.0,0.116212]
[1723985242359,0.17255454,60236.0,60235.0,0.36419022]
[1723985242567,0.17255454,60236.0,60235.0,0.59661322]
[1723985243051,0.17255454,60236.0,60235.0,2.09661322]
[1723985243252,0.17255454,60236.0,60235.0,2.33003622]
[1723985243849,0.17355454,60236.0,60235.0,2.34003622]
[1723985244246,0.17355454,60236.0,60235.0,2.33903622]
[1723985244448,0.17355454,60236.0,60235.0,2.35952009]
[1723985244648,0.002,60236.0,60235.0,2.36052009]
[1723985244858,0.001,60236.0,60235.0,2.35652009]
[1723985245057,0.000827,60238.0,60237.0,0.814452]
[1723985245461,0.000827,60238.0,60237.0,0.82591377]
[1723985245678,0.000827,60238.0,60237.0,2.32591377]
[1723985245879,0.000827,60238.0,60237.0,2.34639764]
[1723985246085,0.17238154,60238.0,60237.0,1.88056764]
[1723985246287,0.17338154,60238.0,60237.0,1.86408377]
[1723985246695,0.17338154,60238.0,60237.0,2.09649877]
[1723985247310,0.17438154,60238.0,60237.0,1.87808377]
[1723985247715,0.17338154,60238.0,60237.0,1.86408377]
[1723985247916,0.17338154,60238.0,60237.0,1.88457155]
[1723985248118,0.17238154,60238.0,60237.0,1.89457155]
[1723985248292,0.17338154,60238.0,60237.0,1.88808377]
[1723985248496,0.17338154,60238.0,60237.0,1.90857165]
[1723985248716,0.17238154,60238.0,60237.0,1.89457165]
[1723985248916,0.17338154,60238.0,60237.0,1.90857165]
[1723985249289,0.17338154,60238.0,60237.0,2.14098665]
[1723985249516,0.17338154,60238.0,60237.0,1.90957165]
[1723985249846,0.17338154,60238.0,60237.0,1.90857165]
[1723985250069,0.17338154,60238.0,60237.0,1.66215665]
[1723985250267,0.17338154,60238.0,60237.0,0.03946177]
[1723985250477,0.29058654,60238.0,60237.0,0.03946177]
[1723985250738,0.90639754,60238.0,60237.0,0.028]
[1723985250965,0.67398654,60238.0,60237.0,0.028]
[1723985251199,0.90539754,60238.0,60237.0,0.014]
[1723985251444,0.78919254,60238.0,60225.0,0.51177509]
[1723985251631,0.78919254,60238.0,60223.0,0.00128708]
[1723985251632,0.17155454,60233.0,60223.0,0.00128708]
[1723985251891,0.17155454,60229.0,60226.0,0.00954655]
[1723985252092,0.17155454,60229.0,60223.0,0.00128708]
[1723985252243,0.116225,60228.0,60223.0,0.00128708]
[1723985252444,0.17155454,60227.0,60223.0,0.00128708]
[1723985252649,1.36858154,60224.0,60223.0,0.00128708]
[1723985252972,1.13611654,60224.0,60223.0,0.00128708]
[1723985253201,1.26011654,60224.0,60223.0,0.00128708]
[1723985253404,1.49258154,60224.0,60223.0,0.00128708]
[1723985253715,1.49258154,60224.0,60223.0,0.00328708]
[1723985253922,1.49158154,60224.0,60223.0,0.00328708]
[1723985254116,1.49258154,60224.0,60223.0,0.00328708]
[1723985254901,1.49658154,60224.0,60223.0,0.00128708]
[1723985255121,1.68278154,60224.0,60223.0,0.00128708]
[1723985255322,1.68478154,60224.0,60223.0,0.00128708]
[1723985255713,1.68078154,60224.0,60223.0,0.00528708]
[1723985255912,1.68078154,60224.0,60223.0,0.00128708]
[1723985256121,1.85233608,60224.0,60223.0,0.00128708]
[1723985256358,1.87433608,60224.0,60223.0,0.00328708]
[1723985256557,1.70278154,60224.0,60223.0,0.00328708]
[1723985256756,1.70278154,60224.0,60223.0,0.00228708]
[1723985256757,1.69778154,60224.0,60223.0,0.00228708]
[1723985256887,1.93024654,60224.0,60223.0,0.00228708]
[1723985257089,0.581277,60212.0,60206.0,0.52086109]
[1723985257289,0.581277,60212.0,60211.0,0.0082914]
[1723985257290,1.35503154,60212.0,60211.0,0.0082914]
[1723985257489,1.68854254,60212.0,60211.0,0.0002]
[1723985257722,0.116294,60192.0,60189.0,0.52023038]
[1723985257877,0.17155454,60192.0,60189.0,0.52023038]
[1723985258143,0.17155454,60192.0,60191.0,0.00837101]
[1723985258144,0.27155454,60192.0,60191.0,0.00837101]
[1723985258349,0.27155454,60192.0,60191.0,0.0002]
[1723985258350,0.64343754,60192.0,60191.0,0.0002]
[1723985258581,0.27155454,60192.0,60191.0,0.0002]
[1723985258824,0.38784854,60192.0,60191.0,0.0002]
[1723985259288,0.85302654,60192.0,60191.0,0.0002]
[1723985259497,0.87602654,60192.0,60191.0,0.0002]
[1723985259722,0.64443754,60192.0,60191.0,0.0002]
[1723985259938,0.76920129,60192.0,60191.0,0.0002]
[1723985260150,1.29202654,60192.0,60191.0,0.0002]
[1723985260362,1.29102654,60192.0,60191.0,0.0002]
[1723985260804,1.29202654,60192.0,60191.0,0.0002]
[1723985261025,1.52461554,60192.0,60191.0,0.0002]
[1723985261249,1.88437008,60192.0,60191.0,0.0002]
[1723985261459,1.88637008,60192.0,60191.0,0.0002]
[1723985261686,2.11895908,60192.0,60191.0,0.0002]
[1723985261906,0.116333,60172.0,60171.0,0.0002]
[1723985262142,0.62055354,60172.0,60171.0,0.0002]
[1723985262351,0.1882,60171.0,60151.0,0.0002]
[1723985262579,0.857014,60152.0,60151.0,0.0002]
[1723985263074,1.212757,60152.0,60151.0,0.0002]
[1723985263317,1.213757,60152.0,60151.0,0.0002]
[1723985264192,1.4565,60152.0,60151.0,0.0002]
[1723985264428,1.4565,60152.0,60132.0,0.51177509]
[1723985264429,0.232791,60140.0,60132.0,0.51177509]
[1723985264656,0.03,60149.0,60132.0,0.51177509]
[1723985264657,0.116387,60144.0,60132.0,0.51177509]
[1723985264881,0.17155454,60137.0,60133.0,0.00805796]
[1723985265338,0.17155454,60137.0,60131.0,0.0002]
[1723985265567,0.17155454,60137.0,60134.0,0.0080698]
[1723985265826,0.17155454,60137.0,60135.0,0.116403]
[1723985266035,0.17155454,60137.0,60135.0,0.00806581]
[1723985266269,0.17155454,60136.0,60131.0,0.0002]
[1723985266489,0.17155454,60136.0,60135.0,0.116404]
[1723985266738,0.17155454,60136.0,60135.0,0.00810764]
[1723985267223,0.17155454,60136.0,60135.0,0.116404]
[1723985267442,0.17155454,60136.0,60135.0,0.12450707]
[1723985267665,0.17255454,60136.0,60135.0,0.35731607]
[1723985268110,0.17255454,60136.0,60135.0,0.12450707]
[1723985268378,0.17255454,60136.0,60135.0,0.35731607]
[1723985269055,0.17155454,60136.0,60135.0,0.35731607]
[1723985269312,0.001,60136.0,60135.0,0.35731607]
[1723985269557,0.17255454,60136.0,60135.0,0.12450707]
[1723985269768,0.17255454,60136.0,60135.0,0.00901167]
[1723985270633,0.17255454,60136.0,60135.0,0.0009086]
[1723985270880,0.17255454,60136.0,60135.0,0.00899834]
[1723985271085,0.17255454,60136.0,60135.0,0.0009086]
[1723985271223,0.17255454,60136.0,60135.0,0.00899834]
[1723985271427,0.17255454,60136.0,60135.0,0.12540234]
[1723985271628,0.17255454,60136.0,60135.0,0.35821134]
[1723985272381,0.17255454,60136.0,60135.0,0.00899834]
[1723985274045,0.17255454,60136.0,60135.0,0.12540234]
[1723985274260,0.17255454,60136.0,60135.0,0.00899834]
[1723985274665,0.001,60136.0,60135.0,0.99954598]
[1723985274867,0.01736351,60165.0,60136.0,0.4042]